fUSD/lending_fUSD_20240506
["ID","MTS","AMOUNT","RATE_DAILY","PERIOD"]
[326471084,1714960252668,-3638.78119702,0.00025,2]
[326471085,1714960252683,-5000.0,0.00025,2]
[326471086,1714960252694,-155.0,0.00025,2]
[326471087,1714960252704,-160.0,0.00025,2]
[326471088,1714960252713,-500.0,0.00025,2]
[326471089,1714960252723,-150.0,0.00025,2]
[326471090,1714960252732,-150.0,0.00025,4]
[326471091,1714960252742,-500.0,0.00025,2]
[326471092,1714960252760,-335.50042478,0.0002509,7]
[326471093,1714960252770,-763.40508817,0.000251,2]
[326471094,1714960252779,-151.0,0.00025209,7]
[326471095,1714960252788,-247.2906,0.00025209,7]
[326471096,1714960252798,-247.2906,0.00025209,7]
[326471097,1714960252807,-2301.0,0.00025209,2]
[326471098,1714960252817,-970.819,0.00025209,2]
[326471099,1714960252827,-463.0,0.00025209,2]
[326471100,1714960252837,-1397.0,0.00025209,2]
[326471101,1714960252847,-1227.0,0.00025209,2]
[326471102,1714960252856,-1259.0,0.00025209,2]
[326471103,1714960252866,-543.0,0.00025209,2]
[326471104,1714960252876,-611.0,0.00025209,2]
[326471105,1714960252885,-808.0,0.00025209,2]
[326471106,1714960252894,-1787.0,0.00025209,2]
[326471107,1714960252906,-438.0,0.00025209,2]
[326471108,1714960252915,-1477.0,0.00025209,2]
[326471109,1714960252924,-2451.0,0.00025209,2]
[326471110,1714960252933,-421.0,0.00025209,2]
[326471111,1714960252944,-1139.0,0.00025209,2]
[326471112,1714960252953,-215.0,0.00025209,2]
[326471113,1714960252962,-444.0,0.00025209,2]
[326471114,1714960252976,-1644.0,0.00025209,2]
[326471115,1714960252986,-3152.0,0.00025209,2]
[326471116,1714960252996,-288.0,0.00025209,2]
[326471117,1714960253005,-37783.0,0.00025209,2]
[326471118,1714960253015,-2294.0,0.00025209,2]
[326471119,1714960253024,-5742.0,0.00025209,2]
[326471120,1714960253033,-5904.0,0.00025209,2]
[326471121,1714960253043,-1058.0,0.00025209,2]
[326471122,1714960253056,-152.76860685,0.00025266,2]
[326471123,1714960253066,-240.96087985,0.00025294,2]
[326471124,1714960253075,-302.0,0.00025348,4]
[326471125,1714960253084,-160.61554908,0.00025349,2]
[326471126,1714960253093,-152.81,0.00025379,2]
[326471127,1714960253103,-167.8,0.00025379,2]
[326471128,1714960253112,-290.555233,0.00025479,2]
[326471129,1714960253127,-157.050609,0.00025498,4]
[326471130,1714960253136,-343388.19069305,0.000255,30]
[326471131,1714960253146,-151.0,0.000255,7]
[326471132,1714960253155,-247.2906,0.000255,7]
[326471133,1714960253165,-247.2906,0.000255,7]
[326471134,1714960253174,-240.96087985,0.00025553,2]
[326471135,1714960253184,-150.0,0.00025605,2]
[326471136,1714960253195,-150.0,0.00025605,2]
[326471137,1714960253205,-150.0,0.00025605,2]
[326471138,1714960253214,-468.56,0.000257,2]
[326471139,1714960253223,-201.0,0.0002576,2]
[326471140,1714960253233,-232.0,0.0002576,2]
[326471141,1714960253242,-604.0,0.00025774,7]
[326471142,1714960253251,-167.0,0.00025803,2]
[326471143,1714960253261,-163.76847842,0.00025823,2]
[326471144,1714960253271,-299.58439979,0.00025825,2]
[326471145,1714960253281,-33132.12244875,0.00025976,2]
[326471146,1714960253290,-154.83275652,0.00025985,2]
[326471147,1714960253299,-650.0,0.00026,3]
[326471148,1714960253309,-299.58439979,0.000261,2]
[326471149,1714960253318,-166.99392,0.00026207,4]
[326471150,1714960253327,-155.30860763,0.00026225,2]
[326471151,1714960253337,-290.555233,0.00026301,2]
[326471152,1714960253347,-299.58439979,0.0002633,2]
[326471153,1714960253361,-314.17535094,0.00026361,2]
[326471154,1714960253371,-26677.99126733,0.00026419,2]
[326471155,1714960253380,-1208.0,0.00026427,30]
[326471156,1714960253389,-154.83275652,0.00026493,2]
[326471157,1714960253398,-160.050609,0.00026498,8]
[326471158,1714960253408,-153.27369,0.000265,5]
[326471159,1714960253417,-154.83275652,0.00026592,2]
[326471160,1714960253431,-4937.03461837,0.000266,2]
[326471161,1714960253442,-299.58439979,0.00026604,2]
[326471162,1714960253451,-201.0,0.0002661,2]
[326471163,1714960253461,-232.0,0.0002661,2]
[326471164,1714960253470,-299.58439979,0.00026653,2]
[326471165,1714960253480,-155.21062543,0.00026907,2]
[326471166,1714960253489,-1740.63653983,0.00027,2]
[326471167,1714960253499,-6452.24595024,0.00027,2]
[326471168,1714960253519,-155.0,0.00027,4]
[326471169,1714960253528,-90939.1107725,0.00027,2]
[326471170,1714960253537,-1877.211677,0.00027,2]
[326471171,1714960253546,-150.0,0.00027,5]
[326471172,1714960253556,-160.5,0.00027068,15]
[326471173,1714960253565,-468.56,0.000271,2]
[326471174,1714960253574,-163.76847842,0.00027122,2]
[326471175,1714960253592,-290.555233,0.00027123,2]
[326471176,1714960253602,-155.0,0.00027236,2]
[326471177,1714960253611,-1211.45504848,0.00027236,2]
[326471178,1714960253620,-155.0,0.00027236,2]
[326471179,1714960253629,-155.0,0.00027237,2]
[326471180,1714960253638,-156.24451872,0.00027237,2]
[326471181,1714960253647,-9611.23534507,0.00027237,2]
[326471182,1714960253658,-301.55154938,0.00027397,2]
[326471183,1714960253671,-3463.78,0.00027397,2]
[326471184,1714960253681,-150.69,0.00027397,2]
[326471185,1714960253692,-201.0,0.0002745,2]
[326471186,1714960253701,-232.0,0.0002745,2]
[326471187,1714960253710,-167.050606,0.00027498,8]
[326471188,1714960253719,-18147.42657479,0.00027499,2]
[326471189,1714960253729,-150.0,0.000275,5]
[326471190,1714960253740,-33132.12244875,0.00027611,2]
[326471191,1714960253750,-299.58439979,0.00027621,2]
[326471192,1714960253759,-156.13471876,0.00027785,2]
[326471193,1714960253768,-154.5676832,0.00027849,2]
[326471194,1714960253778,-300.0,0.00027892,2]
[326471195,1714960253787,-150.00000001,0.000279,2]
[326471196,1714960253796,-614.02862944,0.000279,2]
[326471197,1714960253805,-614.02862944,0.000279,2]
[326471198,1714960253818,-614.02862944,0.000279,2]
[326471199,1714960253827,-614.02862944,0.000279,2]
[326471200,1714960253837,-614.02862944,0.000279,2]
[326471201,1714960253846,-614.02862944,0.000279,2]
[326471202,1714960253856,-614.02862944,0.000279,2]
[326471203,1714960253865,-614.02862944,0.000279,2]
[326471204,1714960253874,-614.02862944,0.000279,2]
[326471205,1714960253883,-614.02862944,0.000279,2]
[326471206,1714960253894,-614.02862944,0.000279,2]
[326471207,1714960253903,-614.02862944,0.000279,2]
[326471208,1714960253913,-290.555233,0.00027945,14]
[326471209,1714960253922,-500.0,0.0002797,2]
[326471210,1714960253931,-500.0,0.0002797,2]
[326471211,1714960253943,-8818.32968606,0.00027997,2]
[326471212,1714960253952,-3335.75862298,0.00027997,2]
[326471213,1714960253961,-700.0,0.00028,3]
[326471214,1714960253977,-952.08772376,0.00028,2]
[326471215,1714960254070,-415.224391,0.00018207,2]
[326471216,1714960254080,-150.0,0.00020403,2]
[326471217,1714960254089,-150.0,0.00020469,2]
[326471218,1714960254098,-150.0,0.00020521,2]
[326471219,1714960254108,-150.0,0.00020703,2]
[326471220,1714960254118,-150.0,0.0002087,2]
[326471221,1714960254130,-150.0,0.0002316,3]
[326471222,1714960254140,-2047.91227624,0.00028,2]
[326471223,1714960254150,-150.0,0.00028,5]
[326471224,1714960254159,-397.26950249,0.00028,2]
[326471225,1714960254171,-160.61554909,0.00028004,2]
[326471226,1714960254181,-158.41549323,0.00028037,2]
[326471227,1714960254191,-240.96087985,0.00028076,2]
[326471228,1714960254200,-7451.6327074,0.00028081,2]
[326471229,1714960254212,-3553.1745902,0.00028081,2]
[326471230,1714960254222,-778.084847,0.00028081,2]
[326471231,1714960254232,-263.6675254,0.00028081,2]
[326471232,1714960254242,-15342.83193506,0.00028081,2]
[326471233,1714960254253,-915.06655553,0.00028081,2]
[326471234,1714960254340,-401.18977184,0.00015364,2]
[326471235,1714960254351,-9598.81022816,0.00015364,2]
[326471236,1714960254363,-150.0,0.00020376,2]
[326471237,1714960254373,-150.0,0.00020634,2]
[326471238,1714960254382,-150.0,0.00020715,2]
[326471239,1714960254392,-150.0,0.0002088,2]
[326471240,1714960254401,-9868.07245781,0.00028081,2]
[326471241,1714960254411,-604.8339613,0.00028081,2]
[326471242,1714960254420,-540.7234257,0.00028081,2]
[326471243,1714960254429,-1250.4805333,0.00028081,2]
[326471244,1714960254441,-240.96087985,0.00028091,2]
[326471245,1714960254450,-565982.06627471,0.000281,6]
[326471246,1714960254461,-1220.00000001,0.000281,6]
[326471247,1714960254472,-1031.53958,0.000281,6]
[326471248,1714960255869,-200.0,0.00013209,2]
[326471249,1714960255878,-260.0,0.00013209,2]
[326471250,1714960255887,-258.055,0.00013209,2]
[326471251,1714960255896,-200.0,0.00013209,2]
[326471252,1714960255906,-186.29955252,0.00013999,2]
[326471253,1714960255915,-150.0,0.00016209,2]
[326471254,1714960255924,-150.0,0.00016209,2]
[326471255,1714960255937,-150.0,0.00016209,2]
[326471256,1714960255947,-150.0,0.00016209,2]
[326471257,1714960255956,-150.0,0.00019209,2]
[326471258,1714960255966,-150.0,0.00019209,2]
[326471259,1714960255980,-150.0,0.00019209,2]
[326471260,1714960255990,-415.224391,0.0002,2]
[326471261,1714960256000,-150.0,0.00020481,2]
[326471262,1714960256009,-150.0,0.00020486,2]
[326471263,1714960256027,-245.554032,0.00020573,2]
[326471264,1714960256036,-415.224391,0.00020573,2]
[326471265,1714960256045,-415.224391,0.00020573,2]
[326471266,1714960256059,-150.0,0.00020969,2]
[326471267,1714960256072,-415.224391,0.00021073,2]
[326471268,1714960256081,-415.224391,0.00023503,7]
[326471269,1714960256095,-150.0,0.00024341,3]
[326471270,1714960256105,-415.224391,0.000255,7]
[326471271,1714960256114,-150.0,0.00025523,5]
[326471272,1714960256124,-150.0,0.00026704,5]
[326471273,1714960256134,-5694.29950002,0.000281,6]
[326471274,1714960256269,-1423.54895211,0.00020773,2]
[326471275,1714960256278,-150.0,0.00022209,2]
[326471276,1714960256287,-140.54978654,0.000281,6]
[326471277,1714960256299,-3730.04859743,0.000281,6]
[326471278,1714960256310,-705.78208492,0.000281,6]
[326471279,1714960256321,-16218.63609707,0.000281,6]
[326471280,1714960256335,-7567.08157827,0.000281,6]
[326471281,1714960256462,-415.224391,0.00027997,7]
[326471282,1714960256471,-219.00766898,0.000281,6]
[326471283,1714960256483,-1912.9668,0.000281,6]
[326471362,1714961240312,9842.346,0.0002,60]
[326471363,1714961241677,151.0,0.00020612,120]
[326471384,1714961432175,-155.0,0.00011739,2]
[326471385,1714961432187,-1243.44223323,0.00011739,2]
[326471386,1714961432199,-343.85597693,0.0001174,2]
[326471387,1714961432210,-155.0,0.0001174,2]
[326471388,1714961432219,-533.84746218,0.00011741,2]
[326471389,1714961432228,-19466.50323234,0.00011746,2]
[326471390,1714961432237,-1008.45877624,0.00011756,2]
[326471391,1714961432246,-3935.3835,0.00011785,2]
[326471392,1714961432255,-750.90499029,0.00011887,2]
[326471393,1714961432264,-1299.16229262,0.00012547,2]
[326471394,1714961432273,-3178.50550401,0.00012547,2]
[326471395,1714961432284,-317.1763,0.00012798,2]
[326471396,1714961432296,-8786.0456,0.00012798,2]
[326471397,1714961432305,-547.41148214,0.00013207,2]
[326471398,1714961432314,-1249.2340224,0.00013208,2]
[326471399,1714961432323,-2364.25593445,0.00013208,2]
[326471400,1714961432333,-168.04601908,0.00013208,2]
[326471401,1714961432342,-194.173,0.00013209,2]
[326471402,1714961432351,-6563.6,0.00013209,2]
[326471403,1714961432360,-499.99,0.00013209,2]
[326471404,1714961432369,-302.51,0.00013209,2]
[326471405,1714961432378,-282.03665938,0.00014,2]
[326471406,1714961432387,-208.26295176,0.00014716,2]
[326471407,1714961432400,-156.34822232,0.00014716,2]
[326471408,1714961432409,-245.79964355,0.00014716,2]
[326471409,1714961432420,-320.77242867,0.00014716,2]
[326471410,1714961432429,-155.32991645,0.00014716,2]
[326471411,1714961432441,-155.4549087,0.00014716,2]
[326471412,1714961432451,-156.60898792,0.00014717,2]
[326471413,1714961432460,-970.819,0.00014718,2]
[326471414,1714961432469,-2301.0,0.00014718,2]
[326471415,1714961432479,-1397.0,0.00014718,2]
[326471416,1714961432488,-463.0,0.00014718,2]
[326471417,1714961432497,-543.0,0.00014718,2]
[326471418,1714961432507,-1259.0,0.00014718,2]
[326471419,1714961432516,-1227.0,0.00014718,2]
[326471420,1714961432525,-1787.0,0.00014718,2]
[326471421,1714961432535,-438.0,0.00014718,2]
[326471422,1714961432544,-808.0,0.00014718,2]
[326471423,1714961432553,-611.0,0.00014718,2]
[326471424,1714961432563,-2451.0,0.00014718,2]
[326471425,1714961432579,-1477.0,0.00014718,2]
[326471426,1714961432588,-421.0,0.00014718,2]
[326471427,1714961432597,-1139.0,0.00014718,2]
[326471428,1714961432606,-215.0,0.00014718,2]
[326471429,1714961432616,-1644.0,0.00014718,2]
[326471430,1714961432624,-444.0,0.00014718,2]
[326471431,1714961432633,-3152.0,0.00014718,2]
[326471432,1714961432642,-288.0,0.00014718,2]
[326471433,1714961432654,-2294.0,0.00014718,2]
[326471434,1714961432663,-5904.0,0.00014718,2]
[326471435,1714961432672,-5742.0,0.00014718,2]
[326471436,1714961432683,-37783.0,0.00014718,2]
[326471437,1714961432691,-1000.0,0.00014767,2]
[326471438,1714961432700,-250.0,0.00014859,2]
[326471439,1714961432710,-2751.0,0.00014872,2]
[326471440,1714961432719,-168.08291638,0.00015,2]
[326471441,1714961432728,-4213.32711154,0.00015,2]
[326471442,1714961432737,-200.0,0.00015035,2]
[326471443,1714961432748,-11474.33,0.00015178,2]
[326471444,1714961432757,-311.96,0.00015277,2]
[326471445,1714961432766,-902.19,0.00015352,2]
[326471446,1714961432775,-500.0,0.00015421,2]
[326471447,1714961432784,-255.9,0.00015781,2]
[326471448,1714961432794,-167.0,0.00015831,2]
[326471449,1714961432803,-10000.0,0.00015993,2]
[326471450,1714961432812,-167.0,0.00016354,2]
[326471451,1714961432821,-1225.44903621,0.000165,2]
[326471452,1714961432830,-183.81,0.00016546,2]
[326471453,1714961432842,-150.51,0.00016561,2]
[326471454,1714961432851,-1000.0,0.00016612,2]
[326471455,1714961432860,-167.0,0.00016876,2]
[326471456,1714961432869,-1749.7901495,0.00017,2]
[326471457,1714961432878,-167.0,0.00017399,2]
[326471458,1714961432887,-2301.0,0.00017718,2]
[326471459,1714961432896,-1376.975,0.00017718,2]
[326471460,1714961432905,-176.197,0.00017718,2]
[326471461,1714961432915,-543.0,0.00017718,2]
[326471462,1714961432924,-1259.0,0.00017718,2]
[326471463,1714961432935,-827.63069586,0.00017718,2]
[326471464,1714961432948,-399.36930414,0.00017718,2]
[326471465,1714961432957,-302.423,0.00017718,2]
[326471466,1714961432966,-432.225,0.00017718,2]
[326471467,1714961432975,-590.259,0.00017718,2]
[326471468,1714961432985,-611.0,0.00017718,2]
[326471469,1714961432994,-2451.0,0.00017718,2]
[326471470,1714961433003,-1449.557,0.00017718,2]
[326471471,1714961433015,-421.0,0.00017718,2]
[326471472,1714961433024,-1139.0,0.00017718,2]
[326471473,1714961433033,-215.0,0.00017718,2]
[326471474,1714961433043,-1644.0,0.00017718,2]
[326471475,1714961433052,-444.0,0.00017718,2]
[326471476,1714961433061,-3152.0,0.00017718,2]
[326471477,1714961433071,-288.0,0.00017718,2]
[326471478,1714961433080,-2294.0,0.00017718,2]
[326471479,1714961433090,-5904.0,0.00017718,2]
[326471480,1714961433101,-5742.0,0.00017718,2]
[326471481,1714961433117,-26622.76912938,0.00017718,2]
[326471482,1714961433231,-257.26043159,0.00015034,2]
[326471483,1714961433240,-227.02648685,0.00017718,2]
[326471484,1714961433251,-559.18577829,0.00017718,2]
[326471485,1714961433262,-482.87677638,0.00017718,2]
[326471502,1714961438280,-1058.0,0.00014718,2]
[326471503,1714961438290,-10000.0,0.00015993,2]
[326471504,1714961438300,-698.4738291,0.00017718,2]
[326471505,1714961438309,-1058.0,0.00017718,2]
[326471506,1714961438319,-255.9,0.00017753,2]
[326471507,1714961438328,-171.79565419,0.00017759,2]
[326471508,1714961438337,-314.17535098,0.00017759,2]
[326471509,1714961438347,-6977.52482338,0.00017769,2]
[326471510,1714961438466,-94720.64948766,0.00017769,2]
[326471514,1714961440867,-1642.96192868,0.00015993,2]
[326471515,1714961440878,-273.54227785,0.00015993,2]
[326471516,1714961440889,-773.13108835,0.00015993,2]
[326471517,1714961440901,-1755.83232869,0.00015993,2]
[326471518,1714961440913,-334.34401921,0.00015993,2]
[326471519,1714961440922,-1065.51109928,0.00017769,2]
[326471520,1714961440933,-337.374,0.00017769,2]
[326471521,1714961440946,-433.65476328,0.00017769,2]
[326471522,1714961441052,-141465.2858264,0.00017769,2]
[326471523,1714961441061,-156.27467,0.00017867,2]
[326471524,1714961441071,-155.08824077,0.00017867,2]
[326471525,1714961441081,-1215.1961833,0.00017867,2]
[326471526,1714961441090,-155.19803765,0.00017868,2]
[326471527,1714961441100,-9618.69888367,0.00017868,2]
[326471528,1714961441110,-11387.57109824,0.00017869,2]
[326471529,1714961441125,-8590.43286449,0.00017869,2]
[326471538,1714961443299,-549.89009576,0.00017869,2]
[326471539,1714961443311,-223743.72611126,0.00017869,2]
[326471540,1714961443322,-548.77089594,0.0001787,2]
[326471541,1714961443333,-3792.59685999,0.0001788,2]
[326471542,1714961443343,-167.0,0.00017921,2]
[326471543,1714961443352,-150.51,0.00017931,2]
[326471544,1714961443362,-450.0,0.00018,3]
[326471545,1714961443371,-167.0,0.00018444,2]
[326471546,1714961443380,-1000.0,0.00018458,2]
[326471547,1714961443389,-150.45,0.00018526,2]
[326471548,1714961443398,-1000.0,0.00018536,2]
[326471549,1714961443407,-10000.0,0.00018536,2]
[326471550,1714961443417,-3792.59685991,0.00018937,2]
[326471551,1714961443430,-187.4922694,0.00018957,2]
[326471552,1714961443442,-327.20346754,0.00019178,2]
[326471553,1714961443454,-163.03,0.00019178,2]
[326471554,1714961443465,-152.81,0.00019178,2]
[326471555,1714961443474,-314.17535094,0.00019513,2]
[326471556,1714961443484,-150.0,0.00019527,3]
[326471557,1714961443493,-255.9,0.00019726,2]
[326471558,1714961443503,-1769.73946573,0.0002,2]
[326471559,1714961443512,-155.0,0.0002,2]
[326471560,1714961443522,-1259.96596893,0.0002,2]
[326471561,1714961443532,-358.41724524,0.0002,2]
[326471562,1714961443543,-626.86050269,0.0002,2]
[326471563,1714961443552,-6229.10982423,0.0002,2]
[326471564,1714961443562,-860.80599786,0.0002,2]
[326471565,1714961443572,-5177.49340838,0.0002,2]
[326471566,1714961443586,-500.0,0.0002,3]
[326471567,1714961443596,-1007.24492021,0.00020113,2]
[326471568,1714961443605,-3792.59685991,0.00020256,2]
[326471569,1714961443615,-1000.0,0.00020304,2]
[326471570,1714961443626,-155.0,0.00020406,2]
[326471571,1714961443638,-593.71,0.00020548,2]
[326471572,1714961443648,-150.45,0.00020602,2]
[326471573,1714961443661,-150.45,0.00020602,2]
[326471574,1714961443671,-150.45,0.00020602,2]
[326471575,1714961443680,-150.45,0.00020602,2]
[326471576,1714961443690,-150.45,0.00020602,2]
[326471577,1714961443700,-155.0,0.00020612,2]
[326471578,1714961443710,-409.09518751,0.00020612,2]
[326471579,1714961443719,-1473.40580703,0.00020612,2]
[326471580,1714961443729,-500.0,0.00020612,2]
[326471581,1714961443738,-366.24814165,0.00020612,2]
[326471582,1714961443748,-443.84791967,0.00020612,2]
[326471583,1714961443758,-1037.51160232,0.00020612,2]
[326471584,1714961443767,-7508.38411684,0.00020612,2]
[326471585,1714961443776,-155.0,0.00020612,2]
[326471586,1714961443786,-546868.86783194,0.00020612,2]
[326471587,1714961443795,-293.54017198,0.00020612,2]
[326471588,1714961443804,-37419.29873334,0.00020612,2]
[326471589,1714961443814,-257.72233972,0.00020612,2]
[326471590,1714961443823,-155.0,0.00020612,2]
[326471591,1714961443835,-150.0,0.00020716,3]
[326471592,1714961443845,-2301.0,0.00020718,2]
[326471593,1714961443854,-543.0,0.00020718,2]
[326471594,1714961443863,-977.936,0.00020718,2]
[326471595,1714961443872,-1227.0,0.00020718,2]
[326471596,1714961443882,-607.111,0.00020718,2]
[326471597,1714961443891,-2451.0,0.00020718,2]
[326471598,1714961443900,-183.072,0.00020718,2]
[326471599,1714961443909,-318.676,0.00020718,2]
[326471600,1714961443918,-209.0,0.00020718,2]
[326471601,1714961443927,-1077.745,0.00020718,2]
[326471602,1714961443936,-444.0,0.00020718,2]
[326471603,1714961443946,-2137.937,0.00020718,2]
[326471604,1714961443955,-288.0,0.00020718,2]
[326471605,1714961443964,-2294.0,0.00020718,2]
[326471606,1714961443973,-5904.0,0.00020718,2]
[326471607,1714961443982,-5220.47,0.00020718,2]
[326471608,1714961443991,-1058.0,0.00020718,2]
[326471609,1714961444001,-155.0,0.000209,2]
[326471610,1714961444010,-716.73138077,0.00021,2]
[326471611,1714961444019,-800.0,0.00021014,2]
[326471612,1714961444028,-151.0,0.00021033,30]
[326471613,1714961444037,-800.0,0.00021041,2]
[326471614,1714961444046,-314.17535094,0.00021267,2]
[326471615,1714961444055,-151.0,0.00021462,7]
[326471616,1714961444064,-3792.59685991,0.00021575,2]
[326471617,1714961444074,-255.9,0.00021698,2]
[326471618,1714961444083,-6760.2217293,0.000219,2]
[326471619,1714961444096,-151.0,0.000219,4]
[326471620,1714961444108,-871.26,0.00021918,3]
[326471621,1714961444122,-250.0,0.00021918,2]
[326471622,1714961444133,-250.0,0.00021918,2]
[326471623,1714961444142,-2000.0,0.00021918,2]
[326471624,1714961444151,-154.83275652,0.00021927,2]
[326471625,1714961444161,-289.59825313,0.00021934,2]
[326471626,1714961444170,-150.45,0.0002199,2]
[326471627,1714961444179,-550.0,0.00022,3]
[326471628,1714961444190,-159.79220094,0.00022138,2]
[326471629,1714961444200,-1000.0,0.0002215,2]
[326471630,1714961444209,-159.79220094,0.00022308,2]
[326471631,1714961444220,-151.0,0.00022347,2]
[326471632,1714961444231,-3867.49763687,0.000225,2]
[326471633,1714961444244,-263.95605343,0.000225,2]
[326471634,1714961444285,-2189.73762716,0.000225,2]
[326471635,1714961444396,-302.0,0.000225,2]
[326471636,1714961446131,-1222.11172305,0.000165,2]
[326471637,1714961446342,-3.33731316,0.000165,2]
[326471638,1714961446352,-1243.44223323,0.00017259,2]
[326471639,1714961446362,-12939.98233721,0.000225,2]
[326471640,1714961446371,-500.0,0.000225,2]
[326471641,1714961446380,-500.0,0.000225,2]
[326471642,1714961446389,-500.0,0.000225,2]
[326471643,1714961446399,-500.0,0.000225,2]
[326471644,1714961446408,-500.0,0.000225,2]
[326471645,1714961446420,-500.0,0.000225,2]
[326471646,1714961446429,-500.0,0.000225,2]
[326471647,1714961446438,-500.0,0.000225,2]
[326471648,1714961446450,-500.0,0.000225,2]
[326471649,1714961446459,-500.0,0.000225,2]
[326471650,1714961446468,-500.0,0.000225,2]
[326471651,1714961446478,-500.0,0.000225,2]
[326471652,1714961446489,-500.0,0.000225,2]
[326471653,1714961446498,-500.0,0.000225,2]
[326471654,1714961446508,-500.0,0.000225,2]
[326471655,1714961446518,-500.0,0.000225,2]
[326471656,1714961446528,-500.0,0.000225,2]
[326471657,1714961446538,-500.0,0.000225,2]
[326471658,1714961446547,-500.0,0.000225,2]
[326471659,1714961446556,-500.0,0.000225,2]
[326471660,1714961446565,-500.0,0.000225,2]
[326471661,1714961446576,-500.0,0.000225,2]
[326471662,1714961446588,-500.0,0.000225,2]
[326471663,1714961446598,-500.0,0.000225,2]
[326471664,1714961446607,-500.0,0.000225,2]
[326471665,1714961446620,-500.0,0.000225,2]
[326471666,1714961446630,-500.0,0.000225,2]
[326471667,1714961446640,-500.0,0.000225,2]
[326471668,1714961446650,-500.0,0.000225,2]
[326471669,1714961446665,-500.0,0.000225,2]
[326471670,1714961446675,-500.0,0.000225,2]
[326471671,1714961446684,-500.0,0.000225,2]
[326471672,1714961446694,-500.0,0.000225,2]
[326471673,1714961446704,-500.0,0.000225,2]
[326471674,1714961446716,-500.0,0.000225,2]
[326471675,1714961446726,-500.0,0.000225,2]
[326471676,1714961446736,-500.0,0.000225,2]
[326471677,1714961446745,-500.0,0.000225,2]
[326471678,1714961446754,-500.0,0.000225,2]
[326471679,1714961446763,-500.0,0.000225,2]
[326471680,1714961446772,-500.0,0.000225,2]
[326471681,1714961446782,-500.0,0.000225,2]
[326471682,1714961446791,-500.0,0.000225,2]
[326471683,1714961446800,-500.0,0.000225,2]
[326471684,1714961446809,-500.0,0.000225,2]
[326471685,1714961446818,-500.0,0.000225,2]
[326471686,1714961446829,-500.0,0.000225,2]
[326471687,1714961446838,-500.0,0.000225,2]
[326471688,1714961446847,-500.0,0.000225,2]
[326471689,1714961446857,-500.0,0.000225,2]
[326471690,1714961446867,-500.0,0.000225,2]
[326471691,1714961446877,-500.0,0.000225,2]
[326471692,1714961446887,-500.0,0.000225,2]
[326471693,1714961446896,-500.0,0.000225,2]
[326471694,1714961446908,-500.0,0.000225,2]
[326471695,1714961446918,-500.0,0.000225,2]
[326471696,1714961446928,-500.0,0.000225,2]
[326471697,1714961446937,-500.0,0.000225,2]
[326471698,1714961446947,-500.0,0.000225,2]
[326471699,1714961446956,-500.0,0.000225,2]
[326471700,1714961446965,-500.0,0.000225,2]
[326471701,1714961446974,-500.0,0.000225,2]
[326471702,1714961446983,-500.0,0.000225,2]
[326471703,1714961446993,-500.0,0.000225,2]
[326471704,1714961447004,-500.0,0.000225,2]
[326471705,1714961447015,-500.0,0.000225,2]
[326471706,1714961447025,-500.0,0.000225,2]
[326471707,1714961447034,-500.0,0.000225,2]
[326471708,1714961447043,-500.0,0.000225,2]